[Event "Titled Tuesday Blitz April 26 Early 2022"]
[White "Rosenberg, Evan S"]
[Black "Martin Carmona, Gaston Manuel"]
[WhiteFideId "2019299"]
[BlackFideId "22284567"]
[WhiteElo "2351"]
[BlackElo "2146"]
[Result "0-1"]
[Round "02"]
[TimeControl "180+1"]
[Date "2022.04.26"]
[WhiteClock "0:00:01"]
[BlackClock "0:01:09"]

1. Nf3 {[%clk 0:03:00]}  Nf6 {[%clk 0:02:54]} 2. c4 {[%clk 0:02:59]}  g6 {[%clk 0:02:54]} 3. Nc3 {[%clk 0:02:58]}  Bg7 {[%clk 0:02:55]} 4. e4 {[%clk 0:02:59]}  d6 {[%clk 0:02:56]} 5. d4 {[%clk 0:02:59]}  O-O {[%clk 0:02:56]} 6. h3 {[%clk 0:03:00]}  e5 {[%clk 0:02:46]} 7. dxe5 {[%clk 0:03:00]}  dxe5 {[%clk 0:02:44]} 8. Qxd8 {[%clk 0:03:01]}  Rxd8 {[%clk 0:02:44]} 9. Bg5 {[%clk 0:03:02]}  Na6 {[%clk 0:02:28]} 10. Nd5 {[%clk 0:02:58]}  Rd6 {[%clk 0:02:26]} 11. Bxf6 {[%clk 0:02:59]}  Bxf6 {[%clk 0:02:20]} 12. b4 {[%clk 0:02:58]}  c6 {[%clk 0:02:17]} 13. c5 {[%clk 0:02:56]}  Rxd5 {[%clk 0:02:13]} 14. exd5 {[%clk 0:02:51]}  e4 {[%clk 0:02:14]} 15. Bxa6 {[%clk 0:02:47]}  bxa6 {[%clk 0:02:12]} 16. O-O-O {[%clk 0:02:32]}  exf3 {[%clk 0:02:11]} 17. dxc6 {[%clk 0:02:23]}  fxg2 {[%clk 0:02:07]} 18. Rh2 {[%clk 0:02:10]}  Bf5 {[%clk 0:02:05]} 19. Rxg2 {[%clk 0:02:01]}  Rc8 {[%clk 0:01:50]} 20. Rd6 {[%clk 0:01:47]}  Be7 {[%clk 0:01:50]} 21. Rd4 {[%clk 0:00:54]}  Rxc6 {[%clk 0:01:48]} 22. f3 {[%clk 0:00:36]}  a5 {[%clk 0:01:45]} 23. a3 {[%clk 0:00:32]}  axb4 {[%clk 0:01:45]} 24. axb4 {[%clk 0:00:33]}  a5 {[%clk 0:01:45]} 25. Rd5 {[%clk 0:00:24]}  Bxh3 {[%clk 0:01:42]} 26. Re2 {[%clk 0:00:21]}  Be6 {[%clk 0:01:41]} 27. b5 {[%clk 0:00:15]}  Rc8 {[%clk 0:01:18]} 28. Rde5 {[%clk 0:00:02]}  Bf6 {[%clk 0:01:18]} 29. Rxe6 {[%clk 0:00:01]}  Rxc5+ {[%clk 0:01:14]} 30. Kb1 {[%clk 0:00:01]}  Rxb5+ {[%clk 0:01:14]} 31. Ka2 {[%clk 0:00:01]}  fxe6 {[%clk 0:01:14]} 32. Rxe6 {[%clk 0:00:01]}  Kf7 {[%clk 0:01:13]} 33. Ra6 {[%clk 0:00:01]}  h5 {[%clk 0:01:11]} 34. Ka3 {[%clk 0:00:01]}  h4 {[%clk 0:01:09]} 35. Ka4 {[%clk 0:00:01]}  Rf5 {[%clk 0:01:09]} 36. Ra7+ {[%clk 0:00:01]}  Be7 {[%clk 0:01:09]} 0-1


[Site "https://www.chess.com"]

[Event "Titled Tuesday Blitz April 26 Early 2022"]
[White "Rustemov, Alexander"]
[Black "Barria Zuniga, Daniel"]
[WhiteFideId "4119002"]
[BlackFideId "3400816"]
[WhiteElo "2851"]
[BlackElo "2414"]
[Result "1-0"]
[Round "02"]
[TimeControl "180+1"]
[Date "2022.04.26"]
[WhiteClock "0:01:50"]
[BlackClock "0:01:41"]

1. d4 {[%clk 0:03:00]}  g6 {[%clk 0:02:53]} 2. c4 {[%clk 0:03:00]}  Bg7 {[%clk 0:02:54]} 3. Nf3 {[%clk 0:03:00]}  c5 {[%clk 0:02:54]} 4. d5 {[%clk 0:03:00]}  e6 {[%clk 0:02:53]} 5. Nc3 {[%clk 0:03:00]}  exd5 {[%clk 0:02:53]} 6. cxd5 {[%clk 0:03:00]}  d6 {[%clk 0:02:53]} 7. h3 {[%clk 0:02:59]}  a6 {[%clk 0:02:52]} 8. a4 {[%clk 0:02:58]}  Ne7 {[%clk 0:02:50]} 9. e4 {[%clk 0:02:57]}  O-O {[%clk 0:02:50]} 10. Bd3 {[%clk 0:02:56]}  f5 {[%clk 0:02:49]} 11. exf5 {[%clk 0:02:41]}  Nxf5 {[%clk 0:02:46]} 12. O-O {[%clk 0:02:39]}  Nd4 {[%clk 0:02:29]} 13. Nxd4 {[%clk 0:02:33]}  Bxd4 {[%clk 0:02:30]} 14. Bh6 {[%clk 0:02:30]}  Rxf2 {[%clk 0:02:17]} 15. Rxf2 {[%clk 0:02:26]}  Bxf2+ {[%clk 0:02:16]} 16. Kxf2 {[%clk 0:02:17]}  Qh4+ {[%clk 0:02:15]} 17. Kg1 {[%clk 0:02:17]}  Qxh6 {[%clk 0:02:15]} 18. Qe2 {[%clk 0:02:18]}  Nd7 {[%clk 0:01:52]} 19. Qe6+ {[%clk 0:02:16]}  Kh8 {[%clk 0:01:51]} 20. Rf1 {[%clk 0:02:05]}  Ne5 {[%clk 0:01:44]} 21. Qf6+ {[%clk 0:01:51]}  Kg8 {[%clk 0:01:41]} 22. Qd8+ {[%clk 0:01:50]}  Kg7 {[%clk 0:01:41]} 23. Qf8# {[%clk 0:01:50]} 1-0


[Site "https://www.chess.com"]

[Event "Titled Tuesday Blitz April 26 Early 2022"]
[White "Samunenkov, Ihor"]
[Black "Srebrnic, Marko"]
[WhiteFideId "14187086"]
[BlackFideId "14603616"]
[WhiteElo "2409"]
[BlackElo "2340"]
[Result "1-0"]
[Round "02"]
[TimeControl "180+1"]
[Date "2022.04.26"]
[WhiteClock "0:00:05"]
[BlackClock "0:00:19"]

1. d4 {[%clk 0:03:00]}  Nf6 {[%clk 0:02:58]} 2. c4 {[%clk 0:03:00]}  g6 {[%clk 0:02:57]} 3. Nc3 {[%clk 0:02:56]}  Bg7 {[%clk 0:02:57]} 4. e4 {[%clk 0:02:55]}  d6 {[%clk 0:02:58]} 5. h3 {[%clk 0:02:56]}  O-O {[%clk 0:02:58]} 6. Bg5 {[%clk 0:02:56]}  c6 {[%clk 0:02:54]} 7. Nf3 {[%clk 0:02:46]}  Qa5 {[%clk 0:02:48]} 8. Qd2 {[%clk 0:01:53]}  e5 {[%clk 0:02:42]} 9. Be2 {[%clk 0:01:45]}  exd4 {[%clk 0:02:36]} 10. Nxd4 {[%clk 0:01:46]}  Re8 {[%clk 0:02:36]} 11. f3 {[%clk 0:01:42]}  Nxe4 {[%clk 0:02:25]} 12. Nxe4 {[%clk 0:01:38]}  Qxd2+ {[%clk 0:02:24]} 13. Kxd2 {[%clk 0:01:38]}  Bxd4 {[%clk 0:02:23]} 14. Nxd6 {[%clk 0:01:39]}  Rf8 {[%clk 0:02:10]} 15. Be7 {[%clk 0:01:34]}  Be6 {[%clk 0:02:01]} 16. Bxf8 {[%clk 0:01:28]}  Kxf8 {[%clk 0:02:01]} 17. Nxb7 {[%clk 0:01:20]}  Na6 {[%clk 0:01:55]} 18. c5 {[%clk 0:00:50]}  Nc7 {[%clk 0:01:40]} 19. Na5 {[%clk 0:00:45]}  Bxc5 {[%clk 0:01:20]} 20. Nxc6 {[%clk 0:00:41]}  Bd5 {[%clk 0:01:12]} 21. Rac1 {[%clk 0:00:39]}  Bd6 {[%clk 0:01:06]} 22. Rc2 {[%clk 0:00:29]}  Bf4+ {[%clk 0:01:01]} 23. Kd1 {[%clk 0:00:28]}  Ne6 {[%clk 0:00:55]} 24. Bc4 {[%clk 0:00:24]}  Bxc6 {[%clk 0:00:40]} 25. Bxe6 {[%clk 0:00:24]}  Bxf3+ {[%clk 0:00:39]} 26. gxf3 {[%clk 0:00:24]}  fxe6 {[%clk 0:00:39]} 27. Ke2 {[%clk 0:00:24]}  Kf7 {[%clk 0:00:35]} 28. Rd1 {[%clk 0:00:24]}  Kf6 {[%clk 0:00:35]} 29. Rd7 {[%clk 0:00:24]}  h5 {[%clk 0:00:34]} 30. b4 {[%clk 0:00:24]}  a6 {[%clk 0:00:26]} 31. a4 {[%clk 0:00:21]}  Rb8 {[%clk 0:00:24]} 32. Rb2 {[%clk 0:00:21]}  Be5 {[%clk 0:00:23]} 33. Rb3 {[%clk 0:00:20]}  Rc8 {[%clk 0:00:21]} 34. Kd1 {[%clk 0:00:10]}  Bf4 {[%clk 0:00:20]} 35. b5 {[%clk 0:00:08]}  axb5 {[%clk 0:00:19]} 36. axb5 {[%clk 0:00:09]}  Rc1+ {[%clk 0:00:19]} 37. Ke2 {[%clk 0:00:09]}  Rc2+ {[%clk 0:00:20]} 38. Ke1 {[%clk 0:00:05]}  Rc1+ {[%clk 0:00:20]} 39. Rd1 {[%clk 0:00:05]}  Rc2 {[%clk 0:00:18]} 40. b6 {[%clk 0:00:03]}  Bg3+ {[%clk 0:00:18]} 41. Kf1 {[%clk 0:00:04]}  Rh2 {[%clk 0:00:13]} 42. b7 {[%clk 0:00:03]}  Bb8 {[%clk 0:00:09]} 43. Rd8 {[%clk 0:00:04]}  Ba7 {[%clk 0:00:09]} 44. b8=Q {[%clk 0:00:04]}  Rf2+ {[%clk 0:00:09]} 45. Ke1 {[%clk 0:00:04]}  Bxb8 {[%clk 0:00:10]} 46. Kxf2 {[%clk 0:00:04]}  Bc7 {[%clk 0:00:10]} 47. Rdd3 {[%clk 0:00:04]}  Be5 {[%clk 0:00:10]} 48. Kg2 {[%clk 0:00:05]}  h4 {[%clk 0:00:10]} 49. Re3 {[%clk 0:00:06]}  Bf4 {[%clk 0:00:10]} 50. Re2 {[%clk 0:00:07]}  e5 {[%clk 0:00:11]} 51. Rb5 {[%clk 0:00:07]}  Kf5 {[%clk 0:00:11]} 52. Re4 {[%clk 0:00:08]}  g5 {[%clk 0:00:12]} 53. Kf1 {[%clk 0:00:08]}  Kf6 {[%clk 0:00:12]} 54. Ke2 {[%clk 0:00:08]}  Kf5 {[%clk 0:00:13]} 55. Kd3 {[%clk 0:00:07]}  Bg3 {[%clk 0:00:14]} 56. Kc4 {[%clk 0:00:05]}  Bf4 {[%clk 0:00:15]} 57. Kd5 {[%clk 0:00:05]}  g4 {[%clk 0:00:15]} 58. hxg4+ {[%clk 0:00:05]}  Kg5 {[%clk 0:00:16]} 59. Rb1 {[%clk 0:00:06]}  h3 {[%clk 0:00:17]} 60. Rh1 {[%clk 0:00:06]}  Kh4 {[%clk 0:00:18]} 61. Rxe5 {[%clk 0:00:06]}  Kg3 {[%clk 0:00:18]} 62. Rh5 {[%clk 0:00:05]}  Kf2 {[%clk 0:00:18]} 63. g5 {[%clk 0:00:05]}  Ke3 {[%clk 0:00:18]} 64. g6 {[%clk 0:00:05]}  h2 {[%clk 0:00:19]} 65. g7 {[%clk 0:00:05]} 1-0


[Site "https://www.chess.com"]

[Event "Titled Tuesday Blitz April 26 Early 2022"]
[White "Sanchez Alvares, Kelvin Antonio"]
[Black "Butti, Enrique"]
[WhiteFideId "3906680"]
[BlackFideId "3700470"]
[WhiteElo "2193"]
[BlackElo "2080"]
[Result "1-0"]
[Round "02"]
[TimeControl "180+1"]
[Date "2022.04.26"]
[WhiteClock "0:00:55"]
[BlackClock "0:01:06"]

1. e4 {[%clk 0:03:00]}  c5 {[%clk 0:02:58]} 2. Nf3 {[%clk 0:03:00]}  d6 {[%clk 0:02:58]} 3. d4 {[%clk 0:03:01]}  cxd4 {[%clk 0:02:58]} 4. Nxd4 {[%clk 0:03:01]}  Nf6 {[%clk 0:02:58]} 5. Nc3 {[%clk 0:03:01]}  a6 {[%clk 0:02:58]} 6. f3 {[%clk 0:03:00]}  Nc6 {[%clk 0:02:56]} 7. Be3 {[%clk 0:03:00]}  Nxd4 {[%clk 0:02:55]} 8. Qxd4 {[%clk 0:02:58]}  e5 {[%clk 0:02:54]} 9. Qd2 {[%clk 0:02:58]}  Be6 {[%clk 0:02:53]} 10. g4 {[%clk 0:02:58]}  h6 {[%clk 0:02:52]} 11. O-O-O {[%clk 0:02:57]}  Rc8 {[%clk 0:02:51]} 12. Kb1 {[%clk 0:02:57]}  Qa5 {[%clk 0:02:49]} 13. Nd5 {[%clk 0:02:56]}  Qxd2 {[%clk 0:02:48]} 14. Rxd2 {[%clk 0:02:56]}  Bxd5 {[%clk 0:02:34]} 15. exd5 {[%clk 0:02:56]}  Be7 {[%clk 0:02:34]} 16. c4 {[%clk 0:02:53]}  Nd7 {[%clk 0:02:32]} 17. h4 {[%clk 0:02:44]}  Bd8 {[%clk 0:02:29]} 18. Rd1 {[%clk 0:02:27]}  Bb6 {[%clk 0:02:28]} 19. Bc1 {[%clk 0:02:26]}  Bd4 {[%clk 0:02:26]} 20. b4 {[%clk 0:02:24]}  a5 {[%clk 0:02:07]} 21. bxa5 {[%clk 0:02:19]}  Ra8 {[%clk 0:02:01]} 22. Bd2 {[%clk 0:02:13]}  Nc5 {[%clk 0:01:59]} 23. Kc2 {[%clk 0:02:08]}  O-O {[%clk 0:01:57]} 24. Rb1 {[%clk 0:02:07]}  Ra7 {[%clk 0:01:56]} 25. Rb5 {[%clk 0:02:06]}  f5 {[%clk 0:01:52]} 26. g5 {[%clk 0:02:03]}  f4 {[%clk 0:01:37]} 27. gxh6 {[%clk 0:01:59]}  gxh6 {[%clk 0:01:37]} 28. Bh3 {[%clk 0:01:58]}  e4 {[%clk 0:01:36]} 29. fxe4 {[%clk 0:01:53]}  Nxe4 {[%clk 0:01:35]} 30. Be6+ {[%clk 0:01:52]}  Kh7 {[%clk 0:01:34]} 31. Rhb1 {[%clk 0:01:40]}  Nc5 {[%clk 0:01:32]} 32. Rf1 {[%clk 0:01:28]}  f3 {[%clk 0:01:30]} 33. Bg4 {[%clk 0:01:26]}  f2 {[%clk 0:01:29]} 34. Be2 {[%clk 0:01:24]}  Kh8 {[%clk 0:01:20]} 35. Bxh6 {[%clk 0:01:14]}  Rg8 {[%clk 0:01:19]} 36. Bg5 {[%clk 0:01:13]}  Ne4 {[%clk 0:01:17]} 37. Kd3 {[%clk 0:01:07]}  Nxg5 {[%clk 0:01:07]} 38. Kxd4 {[%clk 0:01:02]}  Nh3 {[%clk 0:01:06]} 39. Rb3 {[%clk 0:00:55]} 1-0


[Site "https://www.chess.com"]

[Event "Titled Tuesday Blitz April 26 Early 2022"]
[White "Sargissyan, Sargis"]
[Black "Simonovic, Miroslav"]
[WhiteFideId "13303210"]
[BlackFideId "919152"]
[WhiteElo "2174"]
[BlackElo "2043"]
[Result "1-0"]
[Round "02"]
[TimeControl "180+1"]
[Date "2022.04.26"]
[WhiteClock "0:01:11"]
[BlackClock "0:00:53"]

1. e4 {[%clk 0:03:00]}  c5 {[%clk 0:02:59]} 2. Nf3 {[%clk 0:03:00]}  Nc6 {[%clk 0:03:00]} 3. d4 {[%clk 0:03:01]}  cxd4 {[%clk 0:03:01]} 4. Nxd4 {[%clk 0:03:02]}  e5 {[%clk 0:03:01]} 5. Nb5 {[%clk 0:03:01]}  d6 {[%clk 0:03:01]} 6. c4 {[%clk 0:02:59]}  Be7 {[%clk 0:03:00]} 7. N1c3 {[%clk 0:03:00]}  Be6 {[%clk 0:03:00]} 8. Nd5 {[%clk 0:02:54]}  Bxd5 {[%clk 0:02:54]} 9. cxd5 {[%clk 0:02:54]}  Qa5+ {[%clk 0:02:54]} 10. Bd2 {[%clk 0:02:53]}  Qb6 {[%clk 0:02:46]} 11. dxc6 {[%clk 0:02:50]}  bxc6 {[%clk 0:02:47]} 12. Be3 {[%clk 0:02:38]}  c5 {[%clk 0:02:39]} 13. Qd2 {[%clk 0:02:02]}  Nf6 {[%clk 0:02:36]} 14. Nc3 {[%clk 0:01:59]}  O-O {[%clk 0:02:32]} 15. Bc4 {[%clk 0:02:00]}  Ng4 {[%clk 0:02:26]} 16. Nd5 {[%clk 0:01:56]}  Qb7 {[%clk 0:02:26]} 17. O-O {[%clk 0:01:54]}  Nxe3 {[%clk 0:02:24]} 18. Nxe7+ {[%clk 0:01:45]}  Qxe7 {[%clk 0:02:24]} 19. fxe3 {[%clk 0:01:45]}  Kh8 {[%clk 0:02:22]} 20. Rf3 {[%clk 0:01:42]}  f6 {[%clk 0:02:21]} 21. Raf1 {[%clk 0:01:41]}  g5 {[%clk 0:02:22]} 22. h4 {[%clk 0:01:33]}  h6 {[%clk 0:02:21]} 23. hxg5 {[%clk 0:01:20]}  hxg5 {[%clk 0:02:22]} 24. Rh3+ {[%clk 0:01:21]}  Kg7 {[%clk 0:02:22]} 25. Qe2 {[%clk 0:01:21]}  Rh8 {[%clk 0:02:21]} 26. Qg4 {[%clk 0:01:16]}  Rxh3 {[%clk 0:02:15]} 27. Qxh3 {[%clk 0:01:16]}  Rh8 {[%clk 0:02:15]} 28. Qe6 {[%clk 0:01:17]}  Qxe6 {[%clk 0:02:11]} 29. Bxe6 {[%clk 0:01:18]}  Rb8 {[%clk 0:02:01]} 30. b3 {[%clk 0:01:17]}  a5 {[%clk 0:01:57]} 31. Rd1 {[%clk 0:01:16]}  Rb6 {[%clk 0:01:57]} 32. Kf2 {[%clk 0:01:15]}  Kf8 {[%clk 0:01:57]} 33. Kf3 {[%clk 0:01:14]}  Ke7 {[%clk 0:01:57]} 34. Bc4 {[%clk 0:01:15]}  Rb4 {[%clk 0:01:54]} 35. Rh1 {[%clk 0:01:15]}  a4 {[%clk 0:01:45]} 36. Rh7+ {[%clk 0:01:15]}  Ke8 {[%clk 0:01:41]} 37. Kg4 {[%clk 0:01:14]}  axb3 {[%clk 0:01:34]} 38. axb3 {[%clk 0:01:13]}  Rb6 {[%clk 0:01:33]} 39. Kf5 {[%clk 0:01:12]}  Kd8 {[%clk 0:01:28]} 40. Bd5 {[%clk 0:01:12]}  Ra6 {[%clk 0:01:20]} 41. Ke6 {[%clk 0:01:12]}  Ra2 {[%clk 0:00:53]} 42. Kxd6 {[%clk 0:01:11]}  Kc8 {[%clk 0:00:53]} 43. Rh8# {[%clk 0:01:11]} 1-0


[Site "https://www.chess.com"]

[Event "Titled Tuesday Blitz April 26 Early 2022"]
[White "Schekachikhin, Maksim"]
[Black "Chigaev, Maksim"]
[WhiteFideId "24177830"]
[BlackFideId "4108116"]
[WhiteElo "2230"]
[BlackElo "2478"]
[Result "0-1"]
[Round "02"]
[TimeControl "180+1"]
[Date "2022.04.26"]
[WhiteClock "0:00:21"]
[BlackClock "0:00:23"]

1. d4 {[%clk 0:03:00]}  Nf6 {[%clk 0:02:59]} 2. c4 {[%clk 0:03:00]}  g6 {[%clk 0:02:59]} 3. Nc3 {[%clk 0:02:59]}  Bg7 {[%clk 0:03:00]} 4. e4 {[%clk 0:02:59]}  d6 {[%clk 0:03:00]} 5. Be2 {[%clk 0:03:00]}  O-O {[%clk 0:03:00]} 6. Nf3 {[%clk 0:03:00]}  e5 {[%clk 0:02:59]} 7. O-O {[%clk 0:03:00]}  exd4 {[%clk 0:03:00]} 8. Nxd4 {[%clk 0:02:59]}  Re8 {[%clk 0:03:01]} 9. f3 {[%clk 0:02:59]}  c6 {[%clk 0:03:01]} 10. Kh1 {[%clk 0:02:59]}  d5 {[%clk 0:03:02]} 11. exd5 {[%clk 0:02:47]}  cxd5 {[%clk 0:03:01]} 12. Bg5 {[%clk 0:02:41]}  Nc6 {[%clk 0:02:59]} 13. cxd5 {[%clk 0:02:24]}  Nxd4 {[%clk 0:02:28]} 14. Qxd4 {[%clk 0:02:24]}  Nxd5 {[%clk 0:02:20]} 15. Qxg7+ {[%clk 0:02:12]}  Kxg7 {[%clk 0:02:19]} 16. Bxd8 {[%clk 0:02:12]}  Nxc3 {[%clk 0:02:19]} 17. bxc3 {[%clk 0:02:08]}  Rxd8 {[%clk 0:02:18]} 18. Bc4 {[%clk 0:01:44]}  Bf5 {[%clk 0:02:04]} 19. g4 {[%clk 0:01:40]}  Rac8 {[%clk 0:02:03]} 20. Bb3 {[%clk 0:01:37]}  Bd3 {[%clk 0:02:01]} 21. Rfc1 {[%clk 0:01:34]}  Be2 {[%clk 0:01:50]} 22. Kg2 {[%clk 0:01:33]}  Rd3 {[%clk 0:01:50]} 23. Bd1 {[%clk 0:01:12]}  Bxd1 {[%clk 0:01:17]} 24. Rxd1 {[%clk 0:01:12]}  Rcxc3 {[%clk 0:00:41]} 25. Rxd3 {[%clk 0:01:10]}  Rxd3 {[%clk 0:00:42]} 26. Rb1 {[%clk 0:01:11]}  b6 {[%clk 0:00:36]} 27. Kg3 {[%clk 0:01:10]}  Ra3 {[%clk 0:00:34]} 28. Rb2 {[%clk 0:01:10]}  g5 {[%clk 0:00:34]} 29. Rf2 {[%clk 0:01:08]}  Kg6 {[%clk 0:00:33]} 30. h4 {[%clk 0:01:07]}  h5 {[%clk 0:00:31]} 31. hxg5 {[%clk 0:01:04]}  Kxg5 {[%clk 0:00:32]} 32. gxh5 {[%clk 0:01:04]}  Kxh5 {[%clk 0:00:32]} 33. Kf4 {[%clk 0:01:03]}  Kg6 {[%clk 0:00:33]} 34. Ke5 {[%clk 0:01:03]}  f6+ {[%clk 0:00:32]} 35. Ke4 {[%clk 0:01:02]}  Ra4+ {[%clk 0:00:30]} 36. Kd5 {[%clk 0:01:00]}  Kf5 {[%clk 0:00:31]} 37. Rh2 {[%clk 0:00:50]}  Ra5+ {[%clk 0:00:28]} 38. Kc4 {[%clk 0:00:46]}  Kf4 {[%clk 0:00:28]} 39. Kb3 {[%clk 0:00:21]}  Kxf3 {[%clk 0:00:23]} 40. Rh6 {[%clk 0:00:21]}  f5 {[%clk 0:00:23]} 0-1


[Site "https://www.chess.com"]

[Event "Titled Tuesday Blitz April 26 Early 2022"]
[White "Seo, Jung Min"]
[Black "Bethke, Richard"]
[WhiteFideId "1734687"]
[BlackFideId "12959243"]
[WhiteElo "2401"]
[BlackElo "2529"]
[Result "1/2-1/2"]
[Round "02"]
[TimeControl "180+1"]
[Date "2022.04.26"]
[WhiteClock "0:01:49"]
[BlackClock "0:00:27"]

1. d4 {[%clk 0:03:00]}  Nf6 {[%clk 0:02:28]} 2. c4 {[%clk 0:03:00]}  e6 {[%clk 0:02:28]} 3. Nf3 {[%clk 0:03:01]}  d5 {[%clk 0:02:28]} 4. Nc3 {[%clk 0:03:00]}  Be7 {[%clk 0:02:28]} 5. Bf4 {[%clk 0:03:00]}  O-O {[%clk 0:02:28]} 6. e3 {[%clk 0:03:00]}  c5 {[%clk 0:02:28]} 7. dxc5 {[%clk 0:03:00]}  Bxc5 {[%clk 0:02:29]} 8. a3 {[%clk 0:03:01]}  Nc6 {[%clk 0:02:28]} 9. Qc2 {[%clk 0:02:59]}  Re8 {[%clk 0:02:21]} 10. Bg5 {[%clk 0:02:49]}  d4 {[%clk 0:02:04]} 11. exd4 {[%clk 0:02:48]}  Nxd4 {[%clk 0:02:03]} 12. Nxd4 {[%clk 0:02:48]}  Qxd4 {[%clk 0:02:01]} 13. Bxf6 {[%clk 0:02:30]}  Qxf6 {[%clk 0:01:57]} 14. Ne4 {[%clk 0:02:27]}  Qe5 {[%clk 0:01:43]} 15. Be2 {[%clk 0:02:27]}  Bf8 {[%clk 0:01:35]} 16. O-O {[%clk 0:02:25]}  b6 {[%clk 0:01:34]} 17. Bf3 {[%clk 0:02:24]}  Bb7 {[%clk 0:01:33]} 18. Nf6+ {[%clk 0:02:24]}  Qxf6 {[%clk 0:01:32]} 19. Bxb7 {[%clk 0:02:23]}  Rab8 {[%clk 0:01:32]} 20. Bf3 {[%clk 0:02:22]}  Red8 {[%clk 0:01:28]} 21. Rad1 {[%clk 0:02:21]}  Rd4 {[%clk 0:01:27]} 22. Rxd4 {[%clk 0:02:20]}  Qxd4 {[%clk 0:01:28]} 23. Rd1 {[%clk 0:02:20]}  Qe5 {[%clk 0:01:26]} 24. b4 {[%clk 0:02:18]}  Rd8 {[%clk 0:01:23]} 25. g3 {[%clk 0:02:14]}  Rxd1+ {[%clk 0:01:19]} 26. Qxd1 {[%clk 0:02:14]}  Qc3 {[%clk 0:01:19]} 27. Kg2 {[%clk 0:02:00]}  Qxa3 {[%clk 0:01:17]} 28. b5 {[%clk 0:02:00]}  a5 {[%clk 0:01:12]} 29. bxa6 {[%clk 0:02:00]}  Qxa6 {[%clk 0:01:11]} 30. Qb3 {[%clk 0:01:59]}  g6 {[%clk 0:01:08]} 31. h4 {[%clk 0:01:59]}  h5 {[%clk 0:01:07]} 32. Be4 {[%clk 0:01:53]}  Bc5 {[%clk 0:01:06]} 33. Qc2 {[%clk 0:01:53]}  Kh7 {[%clk 0:01:02]} 34. Qe2 {[%clk 0:01:53]}  Qa1 {[%clk 0:00:56]} 35. Bf3 {[%clk 0:01:51]}  Qd4 {[%clk 0:00:55]} 36. Bc6 {[%clk 0:01:51]}  Kg7 {[%clk 0:00:53]} 37. Bb5 {[%clk 0:01:51]}  e5 {[%clk 0:00:51]} 38. Bc6 {[%clk 0:01:51]}  Qd6 {[%clk 0:00:48]} 39. Bd5 {[%clk 0:01:50]}  Qf6 {[%clk 0:00:47]} 40. Qf3 {[%clk 0:01:50]}  Qxf3+ {[%clk 0:00:47]} 41. Kxf3 {[%clk 0:01:50]}  f5 {[%clk 0:00:47]} 42. Ke2 {[%clk 0:01:50]}  Kf6 {[%clk 0:00:47]} 43. Kf1 {[%clk 0:01:50]}  g5 {[%clk 0:00:35]} 44. hxg5+ {[%clk 0:01:50]}  Kxg5 {[%clk 0:00:36]} 45. Kg2 {[%clk 0:01:51]}  h4 {[%clk 0:00:30]} 46. gxh4+ {[%clk 0:01:51]}  Kxh4 {[%clk 0:00:31]} 47. f3 {[%clk 0:01:51]}  Kg5 {[%clk 0:00:31]} 48. Kf1 {[%clk 0:01:50]}  Kf4 {[%clk 0:00:31]} 49. Ke2 {[%clk 0:01:50]}  e4 {[%clk 0:00:26]} 50. fxe4 {[%clk 0:01:51]}  fxe4 {[%clk 0:00:27]} 51. Bc6 {[%clk 0:01:51]}  Ke5 {[%clk 0:00:27]} 52. Bb5 {[%clk 0:01:49]}  Kd4 {[%clk 0:00:27]} 53. Ba6 {[%clk 0:01:49]} 1/2-1/2


[Site "https://www.chess.com"]

[Event "Titled Tuesday Blitz April 26 Early 2022"]
[White "Shankland, Sam"]
[Black "Seifert, Henryk"]
[WhiteFideId "2004887"]
[BlackFideId "1100963"]
[WhiteElo "2618"]
[BlackElo "2120"]
[Result "1-0"]
[Round "02"]
[TimeControl "180+1"]
[Date "2022.04.26"]
[WhiteClock "0:02:16"]
[BlackClock "0:00:03"]

1. d4 {[%clk 0:03:00]}  d5 {[%clk 0:02:56]} 2. c4 {[%clk 0:03:00]}  c6 {[%clk 0:02:56]} 3. Nc3 {[%clk 0:03:00]}  Nf6 {[%clk 0:02:55]} 4. e3 {[%clk 0:03:00]}  a6 {[%clk 0:02:51]} 5. Nf3 {[%clk 0:02:58]}  Bg4 {[%clk 0:02:50]} 6. Qb3 {[%clk 0:02:51]}  b5 {[%clk 0:02:41]} 7. cxd5 {[%clk 0:02:51]}  cxd5 {[%clk 0:02:39]} 8. Ne5 {[%clk 0:02:52]}  Bc8 {[%clk 0:02:22]} 9. a4 {[%clk 0:02:51]}  bxa4 {[%clk 0:02:12]} 10. Qxa4+ {[%clk 0:02:47]}  Bd7 {[%clk 0:02:00]} 11. Nxd7 {[%clk 0:02:42]}  Nbxd7 {[%clk 0:01:43]} 12. Bb5 {[%clk 0:02:41]}  e6 {[%clk 0:01:38]} 13. Bc6 {[%clk 0:02:42]}  Ra7 {[%clk 0:01:05]} 14. Nb5 {[%clk 0:02:39]}  axb5 {[%clk 0:01:00]} 15. Qxa7 {[%clk 0:02:39]}  Bb4+ {[%clk 0:01:00]} 16. Bd2 {[%clk 0:02:21]}  Bxd2+ {[%clk 0:00:59]} 17. Kxd2 {[%clk 0:02:22]}  O-O {[%clk 0:00:58]} 18. Ke2 {[%clk 0:02:23]}  e5 {[%clk 0:00:32]} 19. Rhc1 {[%clk 0:02:21]}  exd4 {[%clk 0:00:26]} 20. Qxd4 {[%clk 0:02:22]}  Re8 {[%clk 0:00:11]} 21. Ra8 {[%clk 0:02:20]}  Qe7 {[%clk 0:00:09]} 22. Rxe8+ {[%clk 0:02:20]}  Qxe8 {[%clk 0:00:08]} 23. Bxb5 {[%clk 0:02:20]}  h6 {[%clk 0:00:05]} 24. Rc7 {[%clk 0:02:19]}  Qd8 {[%clk 0:00:04]} 25. Rxd7 {[%clk 0:02:15]}  Nxd7 {[%clk 0:00:03]} 26. Qxd5 {[%clk 0:02:16]} 1-0


[Site "https://www.chess.com"]